bitfinex/quotes_SOLUSD_20240603
["timestamp","ask_amount","ask_price","bid_price","bid_amount"]
[1717435822613,1.1463113,165.21,165.2,54.2997]
[1717435823488,1.1463113,165.21,165.2,47.2397]
[1717435823692,1.1463113,165.21,165.2,54.2997]
[1717435824201,1.1463113,165.21,165.2,47.2397]
[1717435824402,1.1463113,165.21,165.2,54.2997]
[1717435825384,0.25321476,165.21,165.2,54.2997]
[1717435828502,0.25321476,165.21,165.2,2.2397]
[1717435828709,0.25321476,165.21,165.19,2.2398]
[1717435828898,0.25321476,165.21,165.19,7.06]
[1717435829216,0.25321476,165.21,165.19,2.2398]
[1717435829599,0.25321476,165.21,165.19,9.2998]
[1717435831717,0.25321476,165.21,165.19,7.06]
[1717435832108,0.25321476,165.21,165.19,9.2998]
[1717435836523,0.25321476,165.21,165.15,4.4807]
[1717435836699,2.49271476,165.21,165.17,9.3]
[1717435836907,2.49271476,165.21,165.16,2.2402]
[1717435836908,2.2397,165.2,165.16,2.2402]
[1717435837147,6.5884,165.19,165.13,4.4812]
[1717435837325,6.5884,165.19,165.16,2.2401]
[1717435837524,6.5884,165.19,165.15,2.2402]
[1717435837825,6.5884,165.19,165.16,2.2402]
[1717435838334,6.5884,165.19,165.15,7.06]
[1717435838335,8.8282,165.19,165.15,7.06]
[1717435838525,2.2399,165.18,165.14,2.2404]
[1717435838699,2.2399,165.18,165.15,7.06]
[1717435838899,8.8283,165.19,165.15,9.3003]
[1717435841701,6.5884,165.19,165.15,2.2403]
[1717435841905,2.2398,165.19,165.15,2.2403]
[1717435842105,2.2398,165.19,165.15,9.3003]
[1717435842324,2.2398,165.19,165.12,4.4814]
[1717435842325,18.4806,165.2,165.16,9.3002]
[1717435843431,2.2398,165.19,165.16,9.3002]
[1717435843624,2.2398,165.19,165.16,7.06]
[1717435843822,0.25321476,165.21,165.13,6.7218]
[1717435844133,0.25321476,165.21,165.19,7.06]
[1717435845026,0.25321476,165.21,165.18,9.2999]
[1717435845226,0.25321476,165.21,165.19,1.21097115]
[1717435845435,0.25321476,165.21,165.18,9.2999]
[1717435847149,23.01891476,165.21,165.14,6.1003]
[1717435847339,2.2399,165.19,165.15,2.2403]
[1717435848616,2.2397,165.2,165.16,2.2402]
[1717435848829,9.2997,165.2,165.16,2.2402]
[1717435849625,2.2398,165.19,165.15,9.3003]
[1717435850145,2.2397,165.2,165.16,2.2402]
[1717435850929,2.2398,165.19,165.15,9.3003]
[1717435851434,2.2397,165.2,165.16,2.2402]
[1717435852330,2.2397,165.2,165.16,3.45045489]
[1717435853134,26.04371476,165.21,165.17,2.24]
[1717435853342,18.98371476,165.21,165.17,2.24]
[1717435854248,22.0143,165.2,165.13,4.4811]
[1717435854551,2.2399,165.19,165.15,2.2403]
[1717435857949,2.2397,165.2,165.16,9.3001]
[1717435858145,2.49281476,165.21,165.17,3.44890079]
[1717435858324,0.25321476,165.21,165.18,2.2399]
[1717435859242,0.25321476,165.21,165.15,8.961]
[1717435859455,0.25321476,165.21,165.19,9.2997]
[1717435859950,0.25321476,165.21,165.18,9.2999]
[1717435861243,0.25321476,165.21,165.17,9.3]
[1717435862131,0.25321476,165.21,165.18,2.2399]
[1717435862643,0.25321476,165.21,165.17,7.06]
[1717435862644,0.25321476,165.21,165.2,6.7191]
[1717435862950,0.25321476,165.21,165.2,47.2397]
[1717435863250,0.25321476,165.21,165.2,54.2997]
[1717435864547,0.25321476,165.21,165.2,72.3216]
[1717435865350,0.25321476,165.21,165.2,72.6616]
[1717435866049,0.25321476,165.21,165.2,72.3216]
[1717435866263,0.25321476,165.21,165.2,60.7822]
[1717435867450,0.25321476,165.21,165.2,54.2997]
[1717435870942,0.25321476,165.21,165.2,47.2397]
[1717435871252,0.25321476,165.21,165.2,9.2997]
[1717435871445,0.25321476,165.21,165.2,54.2997]
[1717435872242,2.19191476,165.27,165.22,2.2393]
[1717435872442,2.2389,165.26,165.21,45.0]
[1717435872762,24.5592,165.26,165.21,2.2394]
[1717435873063,24.5592,165.26,165.21,9.2994]
[1717435874156,7.06,165.23,165.14,8.9981634]
[1717435874331,2.2395,165.21,165.17,2.2401]
[1717435874843,7.06,165.2,165.11,0.2]
[1717435875035,2.2401,165.17,165.12,2.2406]
[1717435875239,2.24,165.18,165.14,7.06]
[1717435875841,8.492,165.19,165.14,9.3004]
[1717435877054,2.2396,165.21,165.16,7.06]
[1717435877239,2.2396,165.21,165.17,2.11772442]
[1717435877557,2.2397,165.2,165.17,9.17772442]
[1717435877851,2.2396,165.21,165.17,9.17772442]
[1717435878061,27.9287,165.24,165.18,7.06]
[1717435878239,2.2395,165.22,165.18,7.06]
[1717435878440,2.2392,165.24,165.19,11.41716802]
[1717435878743,2.2393,165.23,165.2,9.17733984]
[1717435878945,2.2393,165.23,165.19,9.2997]
[1717435879136,2.2394,165.22,165.15,45.0]
[1717435879334,2.2396,165.21,165.16,2.2401]
[1717435879539,2.2396,165.21,165.17,7.06]
[1717435880129,2.2396,165.21,165.16,2.2401]
[1717435880329,2.2396,165.21,165.17,7.06]
[1717435880560,2.2396,165.21,165.16,2.2401]
[1717435880561,2.2396,165.21,165.16,9.3001]
[1717435882851,2.2394,165.22,165.17,9.3001]
[1717435883054,2.2394,165.22,165.18,2.2399]
[1717435883950,2.2394,165.22,165.17,9.3]
[1717435884685,15.1135,165.28,165.22,2.2393]
[1717435884864,22.1735,165.28,165.22,9.2993]
[1717435885040,2.2389,165.26,165.21,9.2995]
[1717435885241,2.2388,165.27,165.23,7.06]
[1717435885436,8.3454,165.31,165.26,2.2388]
[1717435885741,8.3454,165.31,165.26,9.2988]
[1717435885949,6.1072,165.31,165.26,2.2388]
[1717435886147,2.2383,165.3,165.25,2.2389]
[1717435886865,6.1072,165.31,165.2,21.1]
[1717435887037,15.9507,165.33,165.2,21.1]
[1717435887038,2.2381,165.32,165.27,2.2386]
[1717435888065,2.2382,165.31,165.26,2.2388]
[1717435888576,18.1887,165.33,165.27,2.2386]
[1717435888775,2.238,165.32,165.27,2.2386]
[1717435888980,2.2382,165.31,165.26,2.2388]
[1717435889376,2.2381,165.32,165.27,2.2386]
[1717435889673,0.2,165.34,165.27,2.2386]
[1717435890063,2.238,165.33,165.27,2.2386]
[1717435890253,2.2381,165.32,165.27,2.2386]
[1717435892879,0.2,165.34,165.27,2.2386]
[1717435893275,2.2381,165.32,165.27,2.2386]
[1717435894457,2.2383,165.31,165.25,45.0]
[1717435894674,2.2383,165.31,165.26,2.2388]
[1717435895556,2.2383,165.31,165.27,2.2387]
[1717435895755,2.2381,165.32,165.27,2.2387]
[1717435897098,0.2,165.34,165.28,6.2066]
[1717435897390,0.2,165.34,165.31,2.2381]
[1717435897689,0.2,165.34,165.3,2.2383]
[1717435899172,2.4378,165.34,165.29,2.2383]
[1717435899385,0.2,165.34,165.3,2.2382]
[1717435900490,0.2,165.34,165.3,1.7382]
[1717435901092,0.2,165.34,165.31,2.2382]
[1717435901592,26.5807,165.32,165.27,2.42233]
[1717435901791,2.2383,165.3,165.27,2.42233]
[1717435902165,22.1044,165.32,165.26,2.2388]
[1717435902166,2.2382,165.31,165.26,2.2388]
[1717435902370,0.34,165.33,165.27,2.2386]
[1717435902594,0.17,165.32,165.27,2.2386]
[1717435902767,2.2382,165.31,165.27,2.2386]
[1717435903375,2.2383,165.3,165.26,2.2388]
[1717435904492,2.2382,165.31,165.26,2.2387]
[1717435904880,2.2383,165.3,165.26,2.2387]
[1717435905793,2.2384,165.29,165.25,47.2389]
[1717435905971,2.2384,165.29,165.25,2.2389]
[1717435906894,2.2384,165.3,165.26,2.2388]
[1717435907498,0.17,165.33,165.24,45.0]
[1717435907685,2.2381,165.32,165.25,4.478]
[1717435907881,2.2381,165.32,165.27,2.2386]
[1717435908572,2.2382,165.31,165.27,2.2386]
[1717435909378,2.2381,165.32,165.28,2.2385]
[1717435909899,2.2382,165.31,165.27,2.2387]
[1717435910282,2.2381,165.32,165.28,2.2386]
[1717435910993,2.4379,165.34,165.3,2.2382]
[1717435911893,7.03,165.33,165.3,2.2382]
[1717435912235,9.2679,165.33,165.3,2.2382]
[1717435912700,7.03,165.33,165.3,2.2382]
[1717435913204,9.2679,165.33,165.3,2.2382]
[1717435913512,7.03,165.33,165.28,6.0216]
[1717435913676,9.2679,165.33,165.29,2.2383]
[1717435914196,9.2679,165.33,165.3,2.2383]
[1717435914406,7.03,165.33,165.27,11.5074]
[1717435914723,0.2,165.34,165.33,2.2379]
[1717435914882,0.2,165.34,165.33,3.446235]
[1717435915083,0.2,165.34,165.33,1.208335]
[1717435915285,0.2,165.34,165.33,2.2379]
[1717435916274,0.2,165.34,165.32,8.6207]
[1717435917001,6.678,165.34,165.28,7.03]
[1717435917175,9.2683,165.31,165.24,11.5083]
[1717435917506,9.2682,165.31,165.26,2.2388]
[1717435917882,9.2682,165.31,165.27,2.2387]
[1717435918622,9.2684,165.3,165.26,2.2388]
[1717435919294,2.2385,165.29,165.25,2.2389]
[1717435919605,2.2385,165.29,165.24,2.2391]
[1717435922009,2.2386,165.28,165.24,2.2391]
[1717435922327,2.2385,165.29,165.24,2.2391]
[1717435923393,2.2386,165.28,165.24,2.2391]
[1717435923627,2.2385,165.29,165.23,45.0]
[1717435923835,2.2385,165.29,165.25,2.239]
[1717435924207,2.2384,165.3,165.25,2.239]
[1717435924530,2.2382,165.31,165.23,49.4784]
[1717435924704,2.2383,165.3,165.26,2.2387]
[1717435925314,2.2383,165.3,165.25,2.2389]
[1717435925518,2.2384,165.29,165.25,2.2389]
[1717435926630,2.2384,165.3,165.25,2.2389]
[1717435926830,2.2384,165.3,165.26,2.2388]
[1717435927126,2.2384,165.3,165.21,2.2394]
[1717435927127,2.2389,165.26,165.21,2.2394]
[1717435927338,4.4773,165.28,165.21,2.2395]
[1717435927506,0.34,165.27,165.21,2.2395]
[1717435927706,2.4088,165.27,165.22,2.2394]
[1717435927937,2.2388,165.27,165.22,2.2394]
[1717435930625,2.2389,165.26,165.21,2.2395]
[1717435932200,2.2387,165.27,165.22,2.2394]
[1717435933425,2.2387,165.27,165.21,2.2395]
[1717435934437,6.30657693,165.33,165.21,6.2017]
[1717435934632,4.476,165.33,165.24,2.239]
[1717435935024,0.2,165.34,165.28,2.2385]
[1717435935224,2.238,165.33,165.28,2.2385]
[1717435935929,2.238,165.32,165.28,2.2385]
[1717435936113,2.238,165.32,165.27,2.2386]
[1717435937136,2.2379,165.33,165.28,2.2385]
[1717435938546,2.2379,165.33,165.29,2.2384]
[1717435938717,0.2,165.34,165.3,2.2382]
[1717435939921,7.23,165.34,165.3,2.2382]
[1717435940538,9.4678,165.34,165.3,2.2382]
[1717435940939,9.4678,165.34,165.29,47.2384]
[1717435941147,2.4378,165.34,165.29,47.2384]
[1717435941452,9.4678,165.34,165.3,2.2383]
[1717435941748,2.4378,165.34,165.3,2.2383]
[1717435942258,9.4678,165.34,165.3,2.2383]
[1717435942455,0.2,165.34,165.31,2.2381]
[1717435942954,0.2,165.34,165.33,2.2379]
[1717435946132,0.2,165.34,165.32,2.2379]
[1717435947267,0.2,165.34,165.33,2.2379]
[1717435948760,0.37,165.34,165.24,15.2331]
[1717435948967,7.4,165.34,165.26,7.03]
[1717435949269,2.238,165.33,165.28,2.2385]
[1717435949963,9.6378,165.34,165.28,2.2385]
[1717435950141,2.2379,165.33,165.28,2.2385]
[1717435950345,9.2679,165.33,165.28,2.2385]
[1717435950937,7.03,165.33,165.29,2.2384]
[1717435951149,7.03,165.33,165.28,47.2385]
[1717435951356,7.03,165.33,165.28,2.2385]
[1717435951664,7.03,165.33,165.29,2.2384]
[1717435951963,2.4378,165.34,165.29,2.2384]
[1717435952149,7.03,165.33,165.29,2.2384]
[1717435952468,2.4378,165.34,165.29,2.2384]
[1717435952661,9.2679,165.33,165.28,2.2385]
[1717435952973,9.268,165.32,165.27,47.2387]
[1717435953470,7.03,165.31,165.27,2.2387]
[1717435953649,7.03,165.31,165.26,47.2388]
[1717435953840,7.03,165.29,165.25,2.239]
[1717435954057,7.03,165.28,165.21,15.6764]
[1717435954263,7.03,165.28,165.25,2.239]
[1717435954441,6.1508,165.31,165.25,2.239]
[1717435954656,7.03,165.29,165.23,7.03]
[1717435955353,7.03,165.3,165.26,2.2388]
[1717435955548,2.238,165.33,165.28,2.2386]
[1717435955861,7.03,165.31,165.28,2.2386]
[1717435956080,7.03,165.31,165.27,2.2386]
[1717435956666,7.03,165.31,165.28,2.2385]
[1717435957167,2.6078,165.34,165.29,2.2384]
[1717435957372,7.03,165.31,165.29,2.2384]
[1717435957553,7.03,165.32,165.29,2.2384]
[1717435958057,0.2,165.34,165.27,15.3264]
[1717435958263,7.23,165.34,165.31,2.2381]
[1717435958464,7.23,165.34,165.32,2.238]
[1717435958980,7.03,165.33,165.31,2.2381]
[1717435959377,7.03,165.33,165.32,2.238]
[1717435959575,7.03,165.33,165.3,47.2382]
[1717435959869,2.4378,165.34,165.29,2.2384]
[1717435960650,2.4378,165.34,165.3,2.2383]
[1717435961149,0.2,165.34,165.23,6.6315]
[1717435961350,7.03,165.3,165.25,11.1948]
[1717435961571,7.03,165.3,165.27,2.2387]
[1717435962086,0.17,165.33,165.25,2.239]
[1717435962384,0.17,165.33,165.25,2.2389]
[1717435962385,7.03,165.28,165.25,2.2389]
[1717435962673,7.03,165.28,165.24,2.2391]
[1717435962855,7.03,165.28,165.25,2.2389]
[1717435963170,2.2381,165.32,165.26,2.2387]
[1717435963357,2.2381,165.32,165.22,22.7056]
[1717435963358,0.34,165.33,165.25,4.478]
[1717435963672,7.03,165.3,165.28,2.2385]
[1717435963851,0.17,165.33,165.28,2.2385]
[1717435964057,25.2133,165.33,165.28,2.2385]
[1717435964678,22.9754,165.33,165.28,2.2385]
[1717435965179,6.4249,165.33,165.28,2.2385]
[1717435965682,2.4378,165.34,165.29,2.2384]
[1717435966067,0.2,165.34,165.3,2.2383]
[1717435966272,0.2,165.34,165.27,20.0]
[1717435966475,0.2,165.34,165.29,4.4769]
[1717435966775,6.218,165.33,165.29,2.2384]
[1717435967470,2.4378,165.34,165.28,2.2386]
[1717435967998,2.4378,165.34,165.29,2.2384]
[1717435968375,0.2,165.34,165.29,2.2384]
[1717435970066,2.4378,165.34,165.29,2.2384]
[1717435970565,0.2,165.34,165.29,2.2384]
[1717435970784,0.2,165.34,165.3,2.2383]
[1717435971553,0.2,165.34,165.24,120.0]
[1717435971775,0.2,165.34,165.28,20.147]
[1717435971966,0.2,165.34,165.32,2.2379]
[1717435977577,0.2,165.34,165.33,2.2379]
[1717435977778,0.2,165.34,165.32,2.238]
[1717435979799,0.2,165.34,165.33,2.2379]
[1717435980062,0.2,165.34,165.32,2.238]
[1717435980279,0.2,165.34,165.33,2.2379]
[1717435980495,0.2,165.34,165.32,2.238]
[1717435981569,0.2,165.34,165.31,2.2381]
[1717435982364,22.3629,165.32,165.22,7.03]
[1717435982565,8.2798,165.32,165.27,2.2386]
[1717435982765,0.17,165.33,165.24,4.478]
[1717435982996,2.578,165.33,165.24,4.478]
[1717435983498,2.578,165.33,165.27,2.2387]
[1717435984179,2.578,165.33,165.26,2.2388]
[1717435984180,0.34,165.33,165.26,2.2388]
[1717435984675,2.2381,165.32,165.26,2.2388]
[1717435985583,2.2381,165.32,165.27,2.2387]
[1717435985982,7.03,165.29,165.27,2.2387]
[1717435986185,0.2,165.34,165.27,7.03]
[1717435986382,7.23,165.34,165.31,2.2381]
[1717435986694,7.03,165.33,165.31,2.2381]
[1717435986891,7.03,165.33,165.32,2.238]
[1717435987695,7.23,165.34,165.32,2.238]
[1717435992179,0.2,165.34,165.32,2.238]
[1717435994285,0.2,165.34,165.33,2.2379]
[1717435996509,0.2,165.34,165.29,11.1921]
[1717435996510,0.2,165.34,165.32,2.238]
[1717435999302,0.2,165.34,165.29,11.1921]
[1717435999496,0.2,165.34,165.32,2.238]
[1717436004302,7.23,165.34,165.32,2.238]
[1717436006122,0.2,165.34,165.32,2.238]
[1717436008608,0.2,165.34,165.31,2.2381]
[1717436008818,7.23,165.34,165.31,2.2381]
[1717436009515,21.5235,165.33,165.29,2.2384]
[1717436010130,6.0399,165.33,165.29,2.2384]
[1717436010310,6.0399,165.33,165.28,2.2385]
[1717436010712,8.2779,165.33,165.27,2.2386]
[1717436011025,8.2779,165.33,165.26,45.0]
[1717436011329,6.0399,165.33,165.28,2.2385]
[1717436011922,8.2778,165.33,165.28,2.2385]
[1717436012606,8.2778,165.33,165.27,2.2387]
[1717436013938,8.2778,165.33,165.28,2.2385]
[1717436013939,6.0399,165.33,165.28,2.2385]
[1717436014229,7.03,165.32,165.29,2.2384]
[1717436014426,0.2,165.34,165.32,2.2379]
[1717436014929,0.2,165.34,165.33,2.2379]
[1717436015433,0.2,165.34,165.33,47.2379]
[1717436016130,0.2,165.34,165.33,45.0]
[1717436017919,0.2,165.34,165.33,47.2379]
[1717436019517,0.2,165.34,165.31,2.2381]
[1717436019921,0.2,165.34,165.32,2.238]
[1717436022225,0.2,165.34,165.32,2.2379]
[1717436022848,0.2,165.34,165.33,2.2379]
[1717436029151,0.2,165.34,165.33,29.4092]
[1717436029358,0.2,165.34,165.33,68.50654024]
[1717436029523,0.2,165.34,165.33,64.6048]
[1717436029722,0.2,165.34,165.33,73.4152]
[1717436029928,0.2,165.34,165.33,84.921]
[1717436030636,0.2,165.34,165.33,100.5865]
[1717436031044,0.2,165.34,165.33,67.2379]
[1717436031254,0.2,165.34,165.33,78.7437]
[1717436031939,0.2,165.34,165.33,78.0823]
[1717436032458,0.2,165.34,165.33,85.1123]
[1717436035772,0.2,165.34,165.33,78.0823]
[1717436036057,0.2,165.34,165.33,78.7437]
[1717436037671,6.1184,165.33,165.28,8.98459756]
[1717436037964,13.1484,165.33,165.26,11.5075]
[1717436038139,13.1484,165.33,165.3,2.2383]
[1717436038341,13.1484,165.33,165.29,2.2384]
[1717436040657,13.1484,165.33,165.26,4.4775]
[1717436040658,7.03,165.31,165.25,7.03]
[1717436041076,7.03,165.31,165.26,45.0]
[1717436041282,21.2985,165.31,165.22,8.9575]
[1717436041476,7.03,165.3,165.26,2.2388]
[1717436042464,0.2,165.34,165.26,6.352]
[1717436042676,7.23,165.34,165.28,11.5071]
[1717436042976,7.23,165.34,165.32,2.238]
[1717436043361,7.23,165.34,165.29,45.0]
[1717436043362,0.2,165.34,165.33,2.2379]
[1717436045976,0.2,165.34,165.33,22.3792]
[1717436046152,0.2,165.34,165.33,94.4092]
[1717436050378,0.2,165.34,165.33,33.4275]
[1717436051978,0.2,165.34,165.33,78.4275]
[1717436052374,0.2,165.34,165.33,87.3792]
[1717436054381,0.2,165.34,165.3,13.4295]
[1717436054567,7.23,165.34,165.32,2.238]
[1717436054985,7.23,165.34,165.33,2.2379]
[1717436056193,7.23,165.34,165.32,2.238]
[1717436057495,7.23,165.34,165.29,8.9538]
[1717436057661,7.23,165.34,165.31,2.2381]
[1717436058183,7.23,165.34,165.32,2.238]
[1717436058484,13.7827,165.34,165.31,2.2381]
[1717436058792,28.9521,165.34,165.31,2.2381]
[1717436059369,28.9521,165.34,165.32,2.238]
[1717436060391,13.7827,165.34,165.32,2.238]
[1717436060693,0.2,165.34,165.33,2.2379]
[1717436060985,0.2,165.34,165.33,22.3792]
[1717436061176,0.2,165.34,165.33,87.3792]
[1717436061584,0.2,165.34,165.33,94.4092]
[1717436066475,7.23,165.34,165.32,2.238]
[1717436066868,7.03,165.33,165.31,2.2381]
[1717436067176,7.03,165.33,165.32,2.238]
[1717436067375,7.03,165.33,165.31,2.2381]
[1717436067575,7.03,165.33,165.3,2.2382]
[1717436067784,7.03,165.31,165.29,2.2384]
[1717436068600,22.514,165.3,165.24,4.4782]
[1717436068803,16.1262,165.33,165.24,4.4782]
[1717436069299,7.03,165.3,165.24,4.4782]
[1717436069506,0.2,165.34,165.29,6.7152]
[1717436069677,0.2,165.34,165.3,4.4766]
[1717436070604,0.2,165.34,165.31,45.0]
[1717436070805,0.2,165.34,165.32,2.238]
[1717436071508,0.2,165.34,165.33,2.2379]
[1717436075990,0.2,165.34,165.32,2.238]
[1717436076914,0.2,165.34,165.33,6.7137]
[1717436077097,0.2,165.34,165.33,71.7137]
[1717436079114,0.2,165.34,165.32,2.238]
[1717436079326,0.2,165.34,165.29,4.4769]
[1717436079620,0.2,165.34,165.33,2.2379]
[1717436081889,0.2,165.34,165.32,2.238]
[1717436084124,0.2,165.34,165.33,2.2379]
[1717436084822,0.2,165.34,165.32,2.238]
[1717436085122,0.2,165.34,165.33,2.2379]
[1717436085626,0.2,165.34,165.32,2.238]
[1717436086408,0.2,165.34,165.33,2.2379]
[1717436086822,0.2,165.34,165.32,2.238]
[1717436090224,0.2,165.34,165.33,2.2379]
[1717436091115,0.2,165.34,165.33,65.4575]
[1717436091318,0.2,165.34,165.33,78.7437]
[1717436092105,0.2,165.34,165.33,85.4575]
[1717436092534,0.2,165.34,165.33,94.4092]
[1717436092827,0.2,165.34,165.33,87.3792]
[1717436098735,0.2,165.34,165.33,94.4092]
[1717436102424,0.2,165.34,165.33,87.3792]
[1717436102625,0.2,165.34,165.33,94.4092]
[1717436103429,0.2,165.34,165.33,87.3792]
[1717436103634,0.2,165.34,165.33,94.4092]
[1717436108151,0.2,165.34,165.33,100.473]
[1717436108353,0.2,165.34,165.33,103.49057799]
[1717436108539,0.2,165.34,165.33,103.83057799]
[1717436109048,0.2,165.34,165.33,112.82044945]
[1717436109243,0.2,165.34,165.33,103.83057799]
[1717436110246,0.2,165.34,165.33,100.813]
[1717436110643,0.2,165.34,165.33,103.83034933]
[1717436111144,0.2,165.34,165.33,100.813]
[1717436111331,0.2,165.34,165.33,103.83004212]
[1717436111536,0.2,165.34,165.33,100.813]
[1717436111738,0.2,165.34,165.33,220.813]
[1717436112234,0.2,165.34,165.33,223.82992977]
[1717436112432,0.812914,165.37,165.33,223.82992977]
[1717436112433,0.812914,165.37,165.36,28.5926]
[1717436112646,0.812914,165.37,165.36,99.8246]
[1717436112847,0.812914,165.37,165.36,102.83954395]
[1717436113226,0.812914,165.37,165.36,54.36761595]
[1717436113632,0.812914,165.37,165.36,89.51761595]
[1717436113833,0.812914,165.37,165.36,51.352672]
[1717436114046,0.812914,165.37,165.36,86.502672]
[1717436114645,0.812914,165.37,165.36,131.502672]
[1717436114855,0.812914,165.37,165.36,134.51777076]
[1717436116130,0.812914,165.37,165.36,131.502672]
[1717436116332,0.812914,165.37,165.36,134.51771884]
[1717436116851,0.812914,165.37,165.36,96.352672]
[1717436117033,0.812914,165.37,165.36,131.502672]
[1717436117354,0.812914,165.37,165.36,104.945272]
[1717436117537,0.812914,165.37,165.36,59.945272]
[1717436119126,0.812914,165.37,165.36,79.945272]
[1717436119546,0.812914,165.37,165.36,124.945272]
[1717436119951,0.812914,165.37,165.36,69.795272]
[1717436120255,0.812914,165.37,165.36,31.825272]
[1717436121229,0.812914,165.37,165.36,51.825272]
[1717436121434,0.812914,165.37,165.36,96.825272]
[1717436121842,0.812914,165.37,165.36,9.132572]
[1717436122037,0.812914,165.37,165.36,2.2375]
[1717436123151,0.812914,165.37,165.36,9.2675]
[1717436123651,0.812914,165.37,165.36,54.2675]
[1717436126344,0.812914,165.37,165.36,58.7425]
[1717436128559,0.812914,165.37,165.36,58.2425]
[1717436128863,0.812914,165.37,165.36,100.9352]
[1717436129034,0.812914,165.37,165.36,99.1977]
[1717436129240,0.812914,165.37,165.36,100.9352]
[1717436129746,0.812914,165.37,165.36,94.4052]
[1717436129938,0.812914,165.37,165.36,108.3284]
[1717436130139,0.812914,165.37,165.36,234.0938]
[1717436131255,0.812914,165.37,165.36,114.0938]
[1717436131463,0.812914,165.37,165.36,107.8284]
[1717436132367,0.812914,165.37,165.36,227.8284]
[1717436132658,0.812914,165.37,165.36,234.3845]
[1717436132864,0.812914,165.37,165.36,237.39905645]
[1717436133268,0.812914,165.37,165.36,234.3845]
[1717436133565,0.812914,165.37,165.36,237.39957306]
[1717436133774,0.03775385,165.39,165.38,142.3725]
[1717436133937,0.03775385,165.39,165.38,214.7425]
[1717436134143,0.03775385,165.39,165.38,221.1996]
[1717436136853,0.03775385,165.39,165.38,22.3725]
[1717436137055,0.03775385,165.39,165.38,49.4025]
[1717436138146,0.03775385,165.39,165.38,49.5725]
[1717436138360,0.03775385,165.39,165.38,87.7125]
[1717436140680,0.03775385,165.39,165.38,207.7125]
[1717436141984,0.03775385,165.39,165.38,87.7125]
[1717436142784,0.03775385,165.39,165.38,87.5425]
[1717436142949,0.03775385,165.39,165.38,94.4025]
[1717436144283,0.03775385,165.39,165.38,94.7425]
[1717436145076,0.03775385,165.39,165.38,94.4025]
[1717436148986,0.03775385,165.39,165.38,42.3725]
[1717436149384,0.03775385,165.39,165.38,49.4025]
[1717436150597,0.03775385,165.39,165.38,94.4025]
[1717436151697,0.03775385,165.39,165.38,94.5725]
[1717436151901,0.03775385,165.39,165.38,94.7425]
[1717436153702,0.03775385,165.39,165.38,214.7425]
[1717436154003,0.03775385,165.39,165.38,207.7125]
[1717436154191,0.03775385,165.39,165.38,217.75553497]
[1717436156312,0.03775385,165.39,165.38,214.7425]
[1717436156884,0.03775385,165.39,165.38,224.19629598]
[1717436158506,0.03775385,165.39,165.38,152.41439598]
[1717436158706,0.03775385,165.39,165.38,169.4025]
[1717436159087,0.03775385,165.39,165.38,172.41399208]
[1717436159597,0.03775385,165.39,165.38,217.41399208]
[1717436159802,0.03775385,165.39,165.38,217.75399208]
[1717436160598,0.03775385,165.39,165.38,242.06049208]